bitfinex-derivatives/quotes_SOLF0:USTF0_20250514
["timestamp","ask_amount","ask_price","bid_price","bid_amount"]
[1747244158837,134.92092464,174.94,174.84,10.28352099]
[1747244159039,68.6,174.93,174.84,10.28352099]
[1747244159337,5.7164,174.91,174.88,5.7171]
[1747244159529,5.7164,174.91,174.84,10.28352099]
[1747244159530,68.6,174.93,174.84,10.28352099]
[1747244160638,68.6,174.93,174.85,1.8695]
[1747244160839,5.7162,174.92,174.85,1.8695]
[1747244161138,68.6,174.93,174.85,1.8695]
[1747244161836,5.7165,174.91,174.85,1.8695]
[1747244162034,68.6,174.93,174.85,1.8695]
[1747244162238,5.7162,174.92,174.89,5.7167]
[1747244162840,68.7929,174.99,174.88,68.6]
[1747244163138,68.56,174.98,174.88,68.6]
[1747244163337,5.7149,174.96,174.93,5.7155]
[1747244163541,68.56,174.98,174.88,68.6]
[1747244164641,68.54,174.97,174.88,68.6]
[1747244165240,10.28352099,174.95,174.85,68.58]
[1747244165537,68.58,174.94,174.84,68.58]
[1747244165735,10.28352099,174.92,174.82,68.58]
[1747244165936,68.52,174.91,174.82,68.58]
[1747244166738,68.52,174.91,174.79,5.4975]
[1747244166937,10.28352099,174.9,174.79,1.7833]
[1747244167132,68.58,174.89,174.77,68.58]
[1747244167338,70.3747,174.89,174.77,68.58]
[1747244168240,134.90498696,174.95,174.77,78.86352099]
[1747244168445,10.25922881,174.99,174.87,10.25922881]
[1747244168640,10.25922881,174.99,174.88,68.58]
[1747244168840,68.5,174.98,174.88,68.58]
[1747244169241,10.25922881,174.96,174.87,68.58]
[1747244169443,5.7156,174.94,174.89,5.7167]
[1747244169640,68.48,174.93,174.89,5.7167]
[1747244170345,5.716,174.92,174.85,68.58]
[1747244170542,10.25922881,174.93,174.85,68.58]
[1747244170846,10.25922881,174.93,174.85,5.718]
[1747244170847,68.48,174.92,174.85,5.718]
[1747244171145,68.48,174.92,174.82,68.58]
[1747244171341,68.58,174.91,174.83,5.7189]
[1747244171551,68.58,174.91,174.82,68.58]
[1747244172648,5.7175,174.88,174.84,5.7186]
[1747244173052,68.46,174.93,174.83,68.46]
[1747244173250,74.1759,174.93,174.83,68.46]
[1747244173551,68.46,174.93,174.83,68.46]
[1747244175051,68.46,174.93,174.91,5.716]
[1747244175253,68.46,174.93,174.87,68.58]
[1747244175652,5.7164,174.91,174.87,74.2974]
[1747244175951,5.7164,174.91,174.87,68.58]
[1747244176248,5.7164,174.91,174.88,5.7171]
[1747244176454,68.46,174.93,174.87,68.58]
[1747244177557,5.716,174.92,174.89,5.7167]
[1747244177756,68.46,174.93,174.87,68.58]
[1747244178144,5.7177,174.87,174.83,68.58]
[1747244178457,68.4,174.88,174.83,68.58]
[1747244178753,5.7177,174.87,174.83,74.2988]
[1747244179347,5.7183,174.85,174.83,68.58]
[1747244179549,68.4,174.88,174.82,1.8943]
[1747244179854,5.7177,174.87,174.83,5.7187]
[1747244180357,68.4,174.88,174.83,5.7187]
[1747244180650,85.01383213,174.87,174.72,68.58]
[1747244180856,88.46903213,174.87,174.72,68.58]
[1747244181060,1.03717748,174.86,174.72,68.58]
[1747244181757,1.03717748,174.86,174.75,5.7215]
[1747244182258,5.7203,174.79,174.76,5.7212]
[1747244182454,74.0803,174.79,174.76,5.7212]
[1747244182958,5.7206,174.78,174.72,68.58]
[1747244183154,68.36,174.79,174.72,68.58]
[1747244183455,68.36,174.79,174.7,5.6513]
[1747244183852,68.36,174.79,174.68,68.6]
[1747244184155,1.03750279,174.78,174.65,3.6606]
[1747244184353,4.40540279,174.78,174.65,3.6606]
[1747244185447,2.93310279,174.78,174.65,3.6606]
[1747244185955,5.7215,174.76,174.72,5.7224]
[1747244186255,2.93310279,174.78,174.72,5.7224]
[1747244186457,1.03750279,174.78,174.65,3.6606]
[1747244186655,68.36,174.77,174.66,68.36]
[1747244186958,68.36,174.77,174.74,5.7217]
[1747244187158,68.36,174.77,174.69,68.62]
[1747244187557,68.34,174.81,174.69,68.62]
[1747244188156,68.62,174.82,174.71,16.43383213]
[1747244188361,68.34,174.83,174.72,70.2152]
[1747244188561,68.34,174.83,174.73,1.7953]
[1747244188761,68.34,174.83,174.74,70.5041]
[1747244189663,74.0589,174.83,174.74,70.5041]
[1747244190064,68.34,174.83,174.74,70.5041]
[1747244190264,68.32,174.84,174.8,5.7196]
[1747244190463,68.32,174.84,174.74,70.5041]
[1747244190965,74.0387,174.84,174.8,5.7196]
[1747244191166,68.32,174.84,174.8,5.7196]
[1747244191664,5.7192,174.83,174.79,5.7202]
[1747244191866,68.32,174.84,174.79,5.7202]
[1747244192072,68.32,174.84,174.74,1.8841]
[1747244192364,5.7204,174.79,174.75,5.7214]
[1747244192566,74.0204,174.79,174.75,5.7214]
[1747244192866,68.3,174.79,174.78,5.7206]
[1747244193062,68.3,174.79,174.74,1.8841]
[1747244193560,5.7206,174.78,174.74,1.8841]
[1747244193760,5.7206,174.78,174.73,1.7953]
[1747244193956,5.7206,174.78,174.74,5.7216]
[1747244194268,5.7206,174.78,174.73,1.7953]
[1747244194467,74.0203,174.79,174.73,1.7953]
[1747244194869,68.3,174.79,174.73,1.7953]
[1747244195075,5.7212,174.77,174.73,7.5175]
[1747244195569,68.3,174.79,174.69,70.1874]
[1747244196670,68.32,174.81,174.79,5.7201]
[1747244196968,68.32,174.85,174.74,68.32]
[1747244197265,68.26,174.84,174.81,5.7193]
[1747244197768,68.26,174.84,174.76,1.7787]
[1747244198168,5.7195,174.82,174.79,5.7201]
[1747244198870,68.26,174.84,174.76,1.7787]
[1747244199268,68.26,174.84,174.76,5.7212]
[1747244199861,68.26,174.84,174.73,1.7787]
[1747244200264,5.7212,174.77,174.73,1.7787]
[1747244200462,68.24,174.78,174.73,7.5008]
[1747244200662,5.7215,174.76,174.69,3.7166]
[1747244200862,68.24,174.78,174.69,3.7166]
[1747244201581,68.24,174.78,174.74,5.7217]
[1747244201764,68.24,174.78,174.69,3.7166]
[1747244201970,5.7213,174.76,174.69,3.7166]
[1747244202474,68.24,174.78,174.69,3.7166]
[1747244202871,68.24,174.78,174.71,5.7228]
[1747244203274,68.24,174.78,174.7,5.7231]
[1747244203875,68.24,174.78,174.71,5.7228]
[1747244204175,68.24,174.78,174.69,3.7166]
[1747244204469,5.7211,174.77,174.69,3.7166]
[1747244204769,68.24,174.78,174.69,3.7166]
[1747244204976,68.24,174.78,174.74,5.7219]
[1747244205572,68.24,174.78,174.69,3.7166]
[1747244206172,5.7218,174.75,174.69,3.7166]
[1747244206376,68.24,174.78,174.69,3.7166]
[1747244206577,68.24,174.78,174.68,68.32]
[1747244206775,68.24,174.78,174.64,70.0945]
[1747244207078,68.24,174.78,174.69,5.7235]
[1747244207671,5.7232,174.71,174.68,5.7238]
[1747244208173,5.7232,174.71,174.64,70.0945]
[1747244208573,73.8827,174.72,174.64,70.0945]
[1747244208879,73.8827,174.72,174.68,5.7236]
[1747244209473,73.8827,174.72,174.64,70.0945]
[1747244210477,68.16,174.72,174.64,70.0945]
[1747244211079,68.16,174.72,174.71,5.7229]
[1747244211279,68.16,174.72,174.64,70.0945]
[1747244211779,68.16,174.72,174.64,1.7745]
[1747244211969,68.16,174.72,174.64,70.1145]
[1747244212478,73.8828,174.72,174.64,70.1145]
[1747244212679,68.16,174.72,174.64,70.1145]
[1747244212979,68.12,174.77,174.64,70.1145]
[1747244214181,5.722,174.74,174.71,5.7227]
[1747244214681,68.12,174.77,174.64,70.1145]
[1747244215378,5.7214,174.76,174.73,5.722]
[1747244215681,68.12,174.77,174.64,70.1145]
[1747244216581,5.7221,174.74,174.64,70.1145]
[1747244216782,5.7221,174.74,174.64,1.7745]
[1747244216980,5.7221,174.74,174.65,68.34]
[1747244217174,5.7221,174.74,174.71,5.7226]
[1747244217580,68.12,174.77,174.65,68.34]
[1747244217774,68.12,174.77,174.64,1.7745]
[1747244217984,5.7231,174.71,174.64,1.7745]
[1747244218277,68.08,174.72,174.64,1.7745]
[1747244218680,68.08,174.72,174.67,5.7239]
[1747244219184,68.08,174.72,174.64,1.7745]
[1747244219484,68.08,174.72,174.63,3.7592]
[1747244219680,5.7239,174.68,174.63,3.7592]
[1747244220380,5.7236,174.69,174.66,5.7244]
[1747244220884,68.08,174.72,174.66,5.7244]
[1747244221184,5.7242,174.67,174.63,3.7592]
[1747244221380,68.08,174.72,174.63,3.7592]
[1747244221683,5.724,174.68,174.65,5.7246]
[1747244222589,68.08,174.72,174.63,3.7592]
[1747244222777,68.34,174.73,174.63,3.7592]
[1747244222981,68.04,174.72,174.64,1.9609]
[1747244223878,68.34,174.73,174.64,1.9609]
[1747244224388,5.7226,174.72,174.69,5.7234]
[1747244224583,68.34,174.73,174.64,1.9609]
[1747244224777,142.0825,174.73,174.64,1.9609]
[1747244225285,142.0823,174.73,174.7,5.723]
[1747244226287,136.36,174.73,174.72,5.7225]
[1747244226491,68.02,174.73,174.72,5.7225]
[1747244226690,68.02,174.73,174.66,68.06]
[1747244226881,68.02,174.73,174.72,5.7225]
[1747244227081,68.02,174.73,174.66,68.06]
[1747244227288,68.02,174.73,174.71,5.7227]
[1747244228284,68.02,174.73,174.72,5.7225]
[1747244228587,68.06,174.77,174.66,68.06]
[1747244228787,67.98,174.76,174.71,5.7226]
[1747244229187,67.98,174.76,174.66,68.06]
[1747244229489,67.98,174.76,174.68,5.7237]
[1747244229691,67.98,174.76,174.66,68.06]
[1747244229984,67.98,174.76,174.67,5.724]
[1747244230289,5.723,174.71,174.64,1.9609]
[1747244230484,67.96,174.71,174.69,5.7233]
[1747244230882,67.96,174.71,174.64,1.9609]
[1747244231892,67.96,174.71,174.7,5.7232]
[1747244232589,68.06,174.76,174.68,68.06]
[1747244232985,73.7813,174.76,174.74,5.7219]
[1747244233285,68.06,174.76,174.68,68.06]
[1747244233490,5.7217,174.75,174.72,5.7223]
[1747244233890,68.06,174.76,174.72,5.7223]
[1747244234093,5.7222,174.74,174.71,5.7228]
[1747244234294,5.7222,174.74,174.67,68.06]
[1747244234595,5.7217,174.75,174.73,5.7221]
[1747244234786,16.40979645,174.78,174.67,68.06]
[1747244234993,16.40979645,174.78,174.68,11.4477]
[1747244235293,16.40979645,174.78,174.77,5.7209]
[1747244236095,16.40979645,174.78,174.76,5.7211]
[1747244236696,16.40979645,174.78,174.77,5.7209]
[1747244239186,67.88,174.83,174.82,5.7193]
[1747244239393,68.04,174.84,174.82,5.7193]
[1747244239698,67.86,174.85,174.84,5.7186]
[1747244239999,73.7574,174.88,174.84,5.7186]
[1747244240197,68.04,174.88,174.78,1.9598]
[1747244240497,135.9,174.88,174.78,1.9598]
[1747244240697,135.9,174.88,174.79,5.7199]
[1747244241098,135.9,174.88,174.77,68.04]
[1747244241296,135.9,174.88,174.8,5.7197]
[1747244241899,135.9,174.88,174.81,5.7195]
[1747244242093,5.7189,174.84,174.77,68.04]
[1747244242295,135.9,174.88,174.77,68.04]
[1747244242491,135.9,174.88,174.8,5.7198]
[1747244242799,5.7188,174.84,174.8,5.7198]
[1747244243189,135.9,174.88,174.79,5.7201]
[1747244243498,5.7195,174.82,174.79,5.7201]
[1747244243797,135.9,174.88,174.8,5.7199]
[1747244244098,5.7191,174.83,174.8,5.7199]
[1747244245301,5.7193,174.82,174.79,5.7201]
[1747244245702,135.9,174.88,174.77,68.04]
[1747244246002,5.719,174.83,174.8,5.7199]
[1747244246499,73.499,174.83,174.8,5.7199]
[1747244246904,5.7193,174.82,174.79,5.7201]
[1747244247104,67.78,174.83,174.75,68.02]
[1747244247906,135.8,174.83,174.75,68.02]
[1747244248402,135.8,174.83,174.72,1.959]
[1747244248905,5.7209,174.77,174.74,5.7218]
[1747244249203,67.74,174.78,174.7,68.02]
[1747244250102,67.74,174.78,174.77,5.7209]
[1747244250404,67.72,174.85,174.75,68.02]
[1747244250605,5.7188,174.84,174.76,67.72]
[1747244250808,67.72,174.85,174.76,67.72]
[1747244251002,73.4384,174.85,174.82,5.7191]
[1747244251300,67.72,174.86,174.76,67.72]
[1747244251605,73.438,174.86,174.77,1.8391]
[1747244251805,5.718,174.86,174.77,1.8391]
[1747244251997,73.438,174.86,174.77,1.8391]
[1747244252602,67.72,174.86,174.77,1.8391]
[1747244252803,67.72,174.86,174.83,5.7187]
[1747244253003,5.7188,174.84,174.77,1.8391]
[1747244253207,67.72,174.86,174.77,1.8391]
[1747244253412,67.72,174.86,174.79,5.72]
[1747244253907,67.72,174.86,174.8,5.7199]
[1747244254109,67.72,174.86,174.76,67.72]
[1747244254708,73.4381,174.86,174.83,5.7187]
[1747244255405,67.72,174.86,174.76,67.72]
[1747244255607,67.68,174.86,174.76,67.72]
[1747244255910,68.02,174.87,174.76,67.72]
[1747244256609,5.7182,174.86,174.76,67.72]
[1747244256802,68.02,174.87,174.76,67.72]
[1747244256998,68.02,174.87,174.74,67.7]
[1747244257305,68.02,174.87,174.73,1.8162]
[1747244257508,16.43383213,174.84,174.71,69.5919]
[1747244257707,5.721,174.77,174.74,5.7217]
[1747244258110,67.64,174.78,174.71,67.72]
[1747244258510,67.64,174.78,174.67,67.72]
[1747244258810,67.64,174.78,174.72,5.7223]
[1747244259310,67.64,174.78,174.67,67.72]
[1747244259608,5.7216,174.75,174.67,67.72]
[1747244260211,5.7216,174.75,174.72,5.7223]
[1747244260411,5.7213,174.76,174.67,67.72]
[1747244260813,67.64,174.78,174.67,67.72]
[1747244261110,5.7209,174.77,174.74,5.7217]
[1747244261512,73.3409,174.77,174.74,5.7217]
[1747244262517,73.3409,174.77,174.75,5.7215]
[1747244262715,73.3409,174.77,174.67,67.72]
[1747244263117,73.3409,174.77,174.74,5.7217]
[1747244263512,5.7204,174.79,174.67,67.72]
[1747244263716,0.194,174.86,174.69,16.43383213]
[1747244263717,67.58,174.81,174.69,16.43383213]
[1747244264014,67.6,174.81,174.7,67.6]
[1747244264212,67.6,174.81,174.8,5.7199]
[1747244264409,67.6,174.81,174.74,67.72]
[1747244264818,67.6,174.81,174.71,1.9426]
[1747244265016,67.6,174.81,174.72,67.72]
[1747244266122,5.7208,174.78,174.74,5.7216]
[1747244266416,67.6,174.81,174.72,67.72]
[1747244266618,5.7207,174.78,174.75,5.7213]
[1747244266819,67.6,174.81,174.72,67.72]
[1747244267720,5.7211,174.77,174.74,5.7219]
[1747244268323,67.6,174.81,174.73,5.7222]
[1747244268822,5.7214,174.76,174.73,5.7222]
[1747244269115,16.43383213,174.87,174.72,67.72]
[1747244269116,4.0,174.88,174.72,67.72]
[1747244269320,5.7201,174.8,174.72,67.72]
[1747244269622,5.7201,174.8,174.77,5.7208]
[1747244270033,5.7201,174.8,174.72,67.72]
[1747244270213,5.7201,174.8,174.76,5.7211]
[1747244270420,67.52,174.8,174.72,67.72]
[1747244270918,73.24,174.8,174.73,3.6635]
[1747244271428,5.7205,174.79,174.73,3.6635]
[1747244272025,5.7206,174.78,174.76,5.721]
[1747244272426,67.52,174.8,174.73,3.6635]
[1747244272724,67.52,174.8,174.77,5.7207]
[1747244273126,5.7206,174.78,174.75,5.7215]
[1747244273929,5.7206,174.78,174.76,5.7212]
[1747244274128,67.52,174.8,174.76,5.7212]
[1747244274326,67.52,174.8,174.73,3.6635]
[1747244274529,67.52,174.8,174.75,5.7214]
[1747244274729,67.52,174.8,174.71,69.6626]
[1747244274925,67.52,174.8,174.71,67.72]
[1747244275130,67.52,174.8,174.73,5.7219]
[1747244275326,5.7213,174.76,174.73,5.7219]
[1747244275728,67.52,174.8,174.71,67.72]
[1747244275929,5.7202,174.79,174.71,67.72]
[1747244276129,67.52,174.8,174.71,67.72]
[1747244276533,5.7205,174.79,174.71,67.72]
[1747244276935,67.52,174.8,174.76,5.7211]
[1747244277135,67.52,174.8,174.69,67.72]
[1747244277739,5.7211,174.77,174.69,67.72]
[1747244278044,5.7211,174.77,174.74,5.7217]
[1747244278242,5.7212,174.76,174.74,5.7217]
[1747244278438,67.52,174.8,174.69,67.72]
[1747244278643,67.52,174.8,174.73,5.722]
[1747244278846,5.7216,174.75,174.69,67.72]
[1747244279145,73.1416,174.75,174.72,5.7223]
[1747244279345,67.42,174.75,174.69,67.72]
[1747244279741,67.42,174.75,174.69,5.7233]
[1747244279939,5.7228,174.72,174.65,67.72]
[1747244280643,5.7224,174.73,174.65,67.72]
[1747244280844,67.4,174.73,174.72,5.7225]
[1747244281640,67.4,174.77,174.65,67.72]
[1747244281944,67.4,174.79,174.67,67.4]
[1747244282340,67.4,174.79,174.78,5.7203]
[1747244282643,67.38,174.8,174.72,67.4]
[1747244283042,73.1,174.8,174.72,67.4]
[1747244283243,67.38,174.8,174.72,67.4]
[1747244283842,67.4,174.82,174.72,67.4]
[1747244284146,67.38,174.8,174.72,67.4]
[1747244284348,3.2725,174.88,174.73,11.4443]
[1747244284545,134.76,174.87,174.73,11.4443]
[1747244284744,67.36,174.86,174.73,11.4443]
[1747244285145,5.7188,174.84,174.73,11.4443]
[1747244285343,67.36,174.86,174.7,5.6548]
[1747244285747,67.36,174.86,174.71,67.4]
[1747244286248,5.7187,174.84,174.81,5.7193]
[1747244286450,67.36,174.86,174.76,67.4]
[1747244286749,67.34,174.86,174.77,3.7413]
[1747244286946,67.38,174.91,174.77,3.7413]
[1747244287137,67.34,174.9,174.78,1.9044]
[1747244287344,5.7171,174.89,174.86,5.7178]
[1747244287545,67.34,174.9,174.82,67.38]
[1747244287745,73.0568,174.9,174.86,5.7177]
[1747244287949,67.34,174.9,174.86,5.7177]
[1747244288251,67.38,174.91,174.82,67.38]
[1747244288449,67.32,174.9,174.82,67.38]
[1747244288953,3.6079,174.97,174.82,67.38]
[1747244289154,134.68,174.96,174.82,67.38]
[1747244289454,5.7159,174.93,174.82,67.38]
[1747244289955,5.7154,174.94,174.82,67.38]
[1747244290257,134.68,174.96,174.82,67.38]
[1747244290650,5.7159,174.93,174.82,67.38]
[1747244291044,67.38,174.96,174.82,67.38]
[1747244291246,72.9754,174.94,174.9,5.7164]
[1747244291755,67.26,174.94,174.82,67.38]
[1747244292450,67.26,174.94,174.91,5.7161]
[1747244292956,67.26,174.94,174.87,67.38]
[1747244293259,67.26,174.94,174.8,27.87363213]
[1747244293457,5.7169,174.9,174.81,67.36]
[1747244293657,5.7169,174.9,174.81,134.6]
[1747244293958,5.7169,174.9,174.86,5.7177]
[1747244294160,67.26,174.94,174.81,134.6]
[1747244294459,67.22,174.93,174.81,134.6]
[1747244294660,72.9359,174.93,174.81,134.6]
[1747244295055,67.22,174.93,174.89,5.7167]
[1747244295260,5.7162,174.92,174.81,134.6]
[1747244295963,72.9358,174.93,174.81,134.6]
[1747244296154,67.22,174.93,174.81,134.6]
[1747244296351,67.2,174.93,174.81,134.6]
[1747244296759,5.7161,174.92,174.81,134.6]
[1747244296961,67.2,174.93,174.89,5.7168]
[1747244297162,67.2,174.93,174.81,134.6]
[1747244297372,72.9157,174.93,174.81,134.6]
[1747244297558,67.2,174.93,174.81,134.6]
[1747244297754,67.2,174.93,174.81,67.36]
[1747244298957,67.2,174.93,174.9,5.7164]
[1747244299665,67.16,174.93,174.91,5.7162]
[1747244299963,67.16,174.93,174.86,67.36]
[1747244300460,67.16,174.93,174.83,67.36]
[1747244300656,67.16,174.93,174.87,5.7175]
[1747244300862,67.16,174.93,174.83,67.36]
[1747244301363,5.7166,174.91,174.87,5.7174]
[1747244301666,67.16,174.93,174.83,67.36]
[1747244301962,5.7161,174.92,174.88,5.717]
[1747244302164,5.7161,174.92,174.84,1.9364]
[1747244302359,67.12,174.92,174.84,3.8686]
[1747244302665,67.12,174.93,174.84,3.8686]
[1747244303254,5.7161,174.92,174.84,3.8686]
[1747244303565,67.12,174.93,174.84,3.8686]
[1747244304366,5.7168,174.9,174.84,3.8686]
[1747244304565,67.12,174.93,174.84,3.8686]
[1747244304767,67.12,174.93,174.84,1.9364]
[1747244304967,67.12,174.93,174.85,5.7182]
[1747244305260,67.12,174.93,174.83,67.36]
[1747244305465,5.7189,174.84,174.81,5.7195]
[1747244305664,5.7189,174.84,174.79,71.0746]
[1747244306067,5.7189,174.84,174.81,5.7194]
[1747244306566,5.7189,174.84,174.82,5.7193]
[1747244306867,67.08,174.85,174.79,71.0746]
[1747244308765,67.36,174.84,174.75,67.36]
[1747244309366,67.36,174.84,174.76,1.8343]
[1747244309768,67.36,174.84,174.82,5.7192]
[1747244309970,67.36,174.84,174.76,1.8343]
[1747244310361,67.08,174.85,174.76,1.8343]
[1747244310970,5.7188,174.84,174.76,1.8343]
[1747244311269,67.04,174.84,174.76,1.8343]
[1747244311859,67.02,174.87,174.76,1.8343]
[1747244312068,67.02,174.86,174.76,1.8343]
[1747244313571,67.02,174.86,174.84,5.7184]
[1747244314370,67.02,174.86,174.85,5.7183]
[1747244314770,67.02,174.87,174.86,5.718]
[1747244314973,67.02,174.91,174.81,67.02]
[1747244315172,67.0,174.9,174.82,70.5962]
[1747244315372,67.0,174.9,174.89,5.717]
[1747244316573,66.98,174.91,174.83,1.8145]
[1747244317175,66.98,174.91,174.9,5.7166]
[1747244317566,67.02,174.95,174.9,5.7166]
[1747244317874,5.7159,174.93,174.9,5.7166]
[1747244318373,72.6754,174.94,174.91,5.7163]
[1747244318777,72.6754,174.94,174.83,1.8145]
[1747244318975,72.6754,174.94,174.91,5.7163]
[1747244319274,5.7157,174.93,174.83,1.8145]
[1747244319773,66.96,174.94,174.91,5.7163]
[1747244319970,72.6755,174.94,174.91,5.7163]
[1747244320369,5.7157,174.93,174.9,5.7165]
[1747244320575,66.96,174.94,174.83,68.7545]
[1747244320877,66.96,174.94,174.92,5.7158]
[1747244321076,67.02,174.95,174.87,67.02]
[1747244321375,133.94,174.95,174.87,67.02]
[1747244321674,66.92,174.95,174.87,67.02]
[1747244321877,66.92,174.95,174.93,5.7155]
[1747244322475,66.92,174.95,174.92,5.7159]
[1747244322676,67.02,174.99,174.87,67.02]
[1747244322974,66.9,174.98,174.87,67.02]
[1747244323273,5.7148,174.96,174.87,67.02]
[1747244323674,5.7148,174.96,174.93,5.7155]
[1747244324179,72.5948,174.96,174.93,5.7155]
[1747244324372,5.7145,174.97,174.94,5.7153]
[1747244324571,66.88,174.97,174.87,67.02]
[1747244325078,5.7147,174.96,174.87,67.02]
[1747244325272,66.88,174.97,174.87,67.02]
[1747244326177,5.7149,174.96,174.87,67.02]
[1747244326475,66.88,174.97,174.87,67.02]
[1747244326677,5.7151,174.95,174.91,5.716]
[1747244326876,66.88,174.97,174.91,5.716]
[1747244327777,5.7152,174.95,174.92,5.7158]
[1747244327977,66.88,174.97,174.87,67.02]
[1747244328478,67.02,175.0,174.87,67.02]
[1747244328677,66.82,174.99,174.87,67.02]
[1747244328874,5.7149,174.96,174.87,67.02]
[1747244329074,66.82,174.99,174.87,67.02]
[1747244329472,5.7149,174.96,174.93,5.7157]
[1747244329677,66.82,174.98,174.87,67.02]
[1747244329977,5.7151,174.95,174.92,5.7157]
[1747244331283,5.7148,174.96,174.93,5.7156]
[1747244331780,5.715,174.95,174.87,67.02]
[1747244332479,5.715,174.95,174.92,5.7158]
[1747244333282,5.7148,174.96,174.93,5.7155]
[1747244334083,5.7148,174.96,174.94,5.7153]
[1747244334277,5.7144,174.97,174.94,5.7153]
[1747244334683,66.82,174.98,174.94,5.7153]
[1747244335182,66.82,174.98,174.93,5.7155]
[1747244335980,5.7149,174.96,174.93,5.7155]
[1747244336580,5.7145,174.97,174.94,5.7152]
[1747244336775,77.27946738,175.0,174.87,67.02]
[1747244336983,66.72,174.99,174.89,10.25946738]
[1747244337181,66.72,174.99,174.97,5.7142]
[1747244337587,66.72,174.99,174.92,67.0]
[1747244337985,72.434,174.99,174.96,5.7145]
[1747244339088,5.7141,174.98,174.96,5.7145]
[1747244339489,5.7141,174.98,174.92,67.0]
[1747244339787,66.72,174.99,174.92,67.0]
[1747244339788,5.7144,174.97,174.92,67.0]
[1747244340086,66.72,174.99,174.92,67.0]
[1747244340285,66.72,174.99,174.95,5.7148]
[1747244340889,5.7142,174.98,174.95,5.7148]
[1747244341184,66.72,174.99,174.96,5.7146]
[1747244341487,72.4338,174.99,174.92,67.0]
[1747244341685,72.3738,174.99,174.96,5.7145]
[1747244341882,5.714,174.98,174.96,5.7145]
[1747244342187,67.02,175.0,174.97,5.7143]
[1747244342386,66.66,174.99,174.92,67.0]
[1747244343190,5.7141,174.98,174.92,67.0]
[1747244343488,5.7147,174.96,174.92,67.0]
[1747244343679,66.66,174.99,174.92,67.0]
[1747244343988,5.7142,174.98,174.95,5.715]
[1747244344483,5.7141,174.98,174.95,5.715]
[1747244345388,66.66,174.99,174.92,67.0]
[1747244345890,72.3738,174.99,174.96,5.7147]
[1747244346496,5.7141,174.98,174.96,5.7147]
[1747244346686,5.7141,174.98,174.95,5.7149]
[1747244346990,72.3738,174.99,174.92,67.0]
[1747244347186,66.66,174.99,174.92,67.0]
[1747244347386,67.02,175.0,174.92,67.0]
[1747244347687,66.6,174.99,174.92,67.0]
[1747244347880,72.3139,174.99,174.96,5.7144]
[1747244348084,66.6,174.99,174.96,5.7144]